Cogmind - Beta 13 X2 @@@ ROGUE MODE // 2024.01.20 @ 00:41:28 Player: Minty Result: Destroyed by Y-54 Guardian with Gatling Laser Performance ------------- Evolutions (3) 1500 Regions Visited (6) 1200 Robots Destroyed (237) 1185 Value Destroyed (6988) 6988 Prototype IDs (36) 720 Alien Tech Used (0) 0 Bonus (5347) 5347 TOTAL SCORE: 16940 Bonus ------- Triggered High Security 500 High Alert Combat Kills 4431 Follower Combat Kills 147 Aligned with FarCom 300 Friendly Fire -31 Cogmind --------- Core Integrity 0/700 Matter 75/300 Energy 29/100 System Corruption 20% Temperature Cool (6) Movement Core (100) Ox1 Location -7/Factory Parts ------- > --- POWER (1) -------- (None) > --- PROPULSION (4) --- (None) > --- UTILITY (5) ------ (None) > --- WEAPON (3) ------- Advanced EMP Blaster > --- INVENTORY (5) ---- Cooled Deuterium Engine Heavy Assault Cannon Peak State ------------ > --- POWER ------------ Reinforced Deuterium Engine > --- PROPULSION ------- Armored Treads Armored Treads Armored Treads Carbon-fiber Leg > --- UTILITY ---------- Small Storage Unit Trap Scanner Trap Scanner Graphene Brace Trap Reconfigurator > --- WEAPON ----------- Precision Assault Rifle Precision Assault Rifle Precision Assault Rifle > --- INVENTORY -------- Cooled Deuterium Engine Cooled Deuterium Engine Enhanced Autogun Heavy Assault Cannon Advanced EMP Blaster Proton Missile Launcher Rocket Array [Rating: 57] Favorites ----------- Power Ion Engine Engine Ion Engine Power Core Light Nuclear Core Propulsion Armored Treads Treads Armored Treads Leg Aluminum Leg Utility Small Storage Unit Device Improved Heat Sink Storage Small Storage Unit Processor Improved Signal Interpreter Protection Core Shielding Weapon Advanced Assault Cannon Energy Gun Small Laser Energy Cannon Beam Cannon Ballistic Gun Precision Assault Rifle Ballistic Cannon Advanced Assault Cannon Launcher Grenade Launcher Impact Weapon Mace Slashing Weapon Mining Claw Build | -11 -10 -10 -10 -9 -8 -7 ------- Run | Yrd Mat Min Exi Min Mat Fac Slots Evolved 6 | . . . . . 4 2 Power . | . . . . . . . Propulsion 2 | . . . . . . 2 Utility 3 | . . . . . 3 . Weapon 1 | . . . . . 1 . Parts Attached 137 | . 24 1 . 2 45 65 Power 14 | . 3 . . . 7 4 Engine 12 | . 3 . . . 5 4 Core 2 | . . . . . 2 . Reactor . | . . . . . . . Propulsion 34 | . 9 . . . 8 17 Treads 19 | . 2 . . . 8 9 Leg 15 | . 7 . . . . 8 Wheel . | . . . . . . . Hover . | . . . . . . . Flight . | . . . . . . . Utility 30 | . 3 . . . 11 16 Device 22 | . 1 . . . 7 14 Storage 2 | . 1 . . . 1 . Processor 2 | . . . . . 1 1 Hackware . | . . . . . . . Protection 4 | . 1 . . . 2 1 Artifact . | . . . . . . . Weapon 59 | . 9 1 . 2 19 28 Energy Gun 11 | . 2 . . . 7 2 Energy Cannon 2 | . 1 . . . 1 . Ballistic Gun 10 | . . . . . 1 9 Ballistic Cannon 9 | . . . . . 4 5 Launcher 24 | . 6 1 . 2 5 10 Special Weapon . | . . . . . . . Impact Weapon 2 | . . . . . . 2 Slashing Weapon 1 | . . . . . 1 . Piercing Weapon . | . . . . . . . Special Melee Weapon . | . . . . . . . Unidentified Prototypes 7 | . . . . . 3 4 Corrupted Parts 8 | . . . . . 6 2 System Corruption 40 | . . . . . 34 6 Parts Lost 39 | . 5 . . . 10 24 Power 5 | . 1 . . . 2 2 Propulsion 14 | . 3 . . . 1 10 Utility 11 | . . . . . 4 7 Weapon 9 | . 1 . . . 3 5 Highest Loss Streak 7 | . 2 . . . 6 7 To Critical Strikes . | . . . . . . . Average Slot Usage (%) 91 | . 97 76 57 85 88 89 Engine 9 | . 13 14 14 14 6 6 Treads 11 | . 3 . . . 14 19 Leg 10 | . 23 14 14 14 . 4 Device 16 | . 2 . . . 26 25 Storage 10 | . 17 14 14 14 5 6 Protection 6 | . 8 14 14 14 6 2 Energy Gun 3 | . 5 . . . 3 1 Ballistic Gun 3 | . 1 . . . 2 7 Ballistic Cannon 6 | . . . . . 11 8 Launcher 9 | . 19 19 . 28 5 1 Naked Turns 1 | . . . . . . 1 Heaviest Build 48 | 13 17 15 9 15 48 44 Greatest Support 84 | 20 40 10 10 10 40 84 Greatest Overweight (x) 7 | . 1 1 . 1 7 3 Average Overweight (x) . | . . 1 . 1 . . Largest Inventory Capacity 8 | . 8 8 8 8 8 8 Average Capacity 7 | . 8 8 8 8 6 7 Most Carried 8 | . 8 8 8 7 8 8 Average Carried 6 | . 7 7 7 6 6 6 Final Capacity 8 | 8 8 8 8 8 8 5 Final Carried 8 | 6 8 7 8 6 7 3 Class Distribution -------------------- 33% | Mutant 31% | Scavenger-Skirmisher 12% | Scavenger-Mutant 11% | Skirmisher 10% | Scavenger-Bomber Dominant Class ---------------- Mutant | -10/Materials Mutant | -10/Mines Mutant | -10/Exiles Mutant | -9/Mines Scavenger-Skirmisher | -8/Materials Scavenger-Skirmisher | -7/Factory Resources | -11 -10 -10 -10 -9 -8 -7 ----------- Run | Yrd Mat Min Exi Min Mat Fac Matter Collected 6650 | 191 1971 . . . 1733 2755 Remotely 15 | . . . . . 15 . Salvage Created 7760 | . 2251 . . . 1944 3565 Parts 463 | . 171 . . . 131 161 Haulers Intercepted 7 | . 2 . . . 2 3 Recyclers Shooed 5 | . 2 . . . 2 1 Parts Field Recycled . | . . . . . . . Retrieved Matter . | . . . . . . . Parts Self-Destructed . | . . . . . . . Prevented . | . . . . . . . Kills | -11 -10 -10 -10 -9 -8 -7 ------- Run | Yrd Mat Min Exi Min Mat Fac Combat Hostiles Destroyed 156 | . 25 . . . 46 85 Melee 2 | . . . . . . 2 Guns 39 | . 13 . . . 7 19 Cannons 51 | . 3 . . . 21 27 AOE 61 | . 9 . . . 17 35 Classes Destroyed 17 | . 10 . . . 5 2 Worker 55 | . 44 . . . 3 8 Builder 24 | . 11 . . . 10 3 Tunneler 5 | . 2 . . . 1 2 Hauler 7 | . 2 . . . 2 3 Recycler 19 | . 15 . . . 4 . Mechanic 8 | . 1 . . . . 7 Operator 3 | . 1 . . . . 2 Watcher 11 | . 3 . . . 3 5 Swarmer 14 | . 3 . . . 10 1 Grunt 99 | . 22 . . . 27 50 Brawler 10 | . . . . . 2 8 Duelist 3 | . . . . . . 3 Protector 4 | . . . . . 1 3 Sentry 7 | . . . . . 4 3 Hunter 10 | . . . . . 1 9 Programmer 8 | . . . . . . 8 Heavy 1 | . . . . . 1 . Best Kill Streak 19 | . 8 . . . 11 19 Combat Bots Only 14 | . 5 . . . 9 14 Max Kills in Single Turn 5 | . 3 . . . 5 4 Gunslinging 1 | . 1 . . . . . Exploded 4 | . 2 . . . 3 4 Melee 1 | . . . . . . 1 Uniques/NPCs Destroyed . | . . . . . . . Combat | -11 -10 -10 -10 -9 -8 -7 -------- Run | Yrd Mat Min Exi Min Mat Fac Hostile Shots Fired 713 | . 138 . . . 199 376 Missed 220 | . 53 . . . 54 113 Damage Taken 8965 | . 1590 . . . 2679 4696 Core 1413 | . 223 . . . 486 704 Absorbed by Shields . | . . . . . . . Redirected to Shielding 172 | . 9 . . . 46 117 Ignored by Resistances 16 | . . . . . . 16 Regen/Repaired (Parts) 224 | . . . . . . 224 Core Remaining (%) 40 | 100 . . . 10 11 . Volleys Fired 452 | . 190 . . . 108 154 Largest 3 | . 2 . . . 3 3 Hottest 157 | . 125 . . . 150 157 Shots Fired 962 | . 332 . . . 231 399 Gun 410 | . 146 . . . 78 186 Cannon 332 | . 25 . . . 130 177 Launcher 220 | . 161 . . . 23 36 Special . | . . . . . . . Kinetic 513 | . 23 . . . 144 346 Thermal 167 | . 148 . . . 2 17 Explosive 204 | . 161 . . . 23 20 Electromagnetic 78 | . . . . . 62 16 Robot Hit Streak 23 | . 9 . . . 12 23 Robot Miss Streak 10 | . 6 . . . 8 10 Penetration Max . | . . . . . . . Secondary Targets 6 | . 2 . . . 3 1 Max Gunslinging Chain 1 | . 1 . . . 1 1 Shots Hit Robots 566 | . 167 . . . 137 262 Core Hits 522 | . 153 . . . 106 263 Critical Kills 1 | . . . . . . 1 Critical Parts Destroyed 2 | . . . . . . 2 Critical Strikes 23 | . . . . . 7 16 Destroy 2 | . . . . . . 2 Blast 20 | . . . . . 7 13 Smash 1 | . . . . . . 1 Melee Attacks 11 | . . . . . 1 10 Impact 10 | . . . . . . 10 Slashing 1 | . . . . . 1 . Piercing . | . . . . . . . Sneak Attacks 4 | . . . . . 1 3 Combat Hostiles . | . . . . . . . Follow-up Attacks . | . . . . . . . Damage Inflicted 25239 | . 5745 . . . 5845 13649 Guns 4681 | . 1006 . . . 982 2693 Cannons 6317 | . 265 . . . 2891 3161 Explosions 13720 | . 4385 . . . 1906 7429 Melee 370 | . . . . . 46 324 Ramming 151 | . 89 . . . 20 42 Kinetic 8873 | . 169 . . . 3050 5654 Thermal 3276 | . 1102 . . . 260 1914 Explosive 10457 | . 4385 . . . 1635 4437 Electromagnetic 2112 | . . . . . 834 1278 Impact 324 | . . . . . . 324 Slashing 46 | . . . . . 46 . Piercing . | . . . . . . . Highest Corruption 36 | . 2 2 2 2 36 20 Average Corruption 14 | . 2 2 2 2 28 9 Corruption Purged . | . . . . . . . Corruption Blocked . | . . . . . . . Effects 239 | . 24 1 2 . 124 88 Message Errors 56 | . 8 . 1 . 27 20 Matter Fused 58 | . 5 . . . 34 19 Heat Flow Errors 23 | . 1 . 1 . 11 10 Energy Discharges 36 | . 4 1 . . 20 11 Parts Rejected 1 | . . . . . 1 . Parts Fused 1 | . . . . . 1 . Data Loss (minor) 22 | . 4 . . . 5 13 Data Loss (major) 8 | . 1 . . . 6 1 Misfires 9 | . . . . . 4 5 Alerts 6 | . 1 . . . 3 2 Misdirections 4 | . . . . . 2 2 Weapon Failures 15 | . . . . . 10 5 Overload Shots . | . . . . . . . Overflow Damage 951 | . 77 . . . 224 650 Projectiles 353 | . . . . . 180 173 Explosions 454 | . 77 . . . 44 333 Melee 144 | . . . . . . 144 Knockbacks 43 | . . . . . 16 27 Impact 3 | . . . . . . 3 Kinetic 39 | . . . . . 16 23 Secondary 1 | . . . . . . 1 Self-Inflicted Damage 1491 | . 533 . . . 237 721 Shots 60 | . 31 . . . 8 21 Rammed 13 | . 2 . . . 5 6 Targets Rammed 32 | . 17 . . . 5 10 Kicked 14 | . 14 . . . . . Crushed 5 | . 1 . . . . 4 Highest Temperature 328 | . 328 . 124 . 319 271 Average Temperature 75 | . 78 . 66 . 93 50 Received Heat Transfer 2490 | . 543 . . . 864 1083 Effects 3 | . 3 . . . . . Energy Bleed 2 | . 2 . . . . . Interference 1 | . 1 . . . . . Siege Activations . | . . . . . . . Robots Corrupted 3 | . . . . . 1 2 Combat Hostiles 2 | . . . . . 1 1 Parts Fried 14 | . . . . . 8 6 Impact Corruptions 8 | . . . . . . 8 Robots Melted . | . . . . . . . Combat Hostiles . | . . . . . . . Parts Melted 2 | . 2 . . . . . Heat Transferred 4283 | . 2475 . . . 350 1458 Parts Sabotaged . | . . . . . . . Parts Stolen . | . . . . . . . Parts Stripped . | . . . . . . . Power Chain Reactions 11 | . . . . . 4 7 Missiles Intercepted . | . . . . . . . Alert | -11 -10 -10 -10 -9 -8 -7 ------- Run | Yrd Mat Min Exi Min Mat Fac Peak Influence 3426 | . 1355 528 . . 1393 3426 Initial 583 | . . 528 . . . 583 Average 1068 | . 682 528 . . 902 1693 Maximum Alert Level 5 | . 4 2 . . 4 5 Low Security (%) 8 | . 15 . . 100 6 . Level 1 9 | . 18 . . . 9 . Level 2 12 | . 9 100 . . 22 5 Level 3 25 | . 34 . . . 12 28 Level 4 27 | . 22 . . . 49 12 Level 5 12 | . . . . . . 40 High Security 3 | . . . . . . 12 Max Security . | . . . . . . . Sterilizations 1 | . . . . . 1 . Squads Dispatched 55 | . 10 . . . 11 34 Investigation 23 | . 9 . . . 5 9 Extermination 3 | . . . . . . 3 Reinforcement 8 | . 1 . . . 5 2 Assault 20 | . . . . . 1 19 Garrison 1 | . . . . . . 1 Intercept . | . . . . . . . Searches Triggered . | . . . . . . . Construction Impeded 4 | . . . . . 2 2 Haulers Reinforced . | . . . . . . . Active Scanning Responses . | . . . . . . . Cargo Convoy Interrupts . | . . . . . . . Stealth | -11 -10 -10 -10 -9 -8 -7 --------- Run | Yrd Mat Min Exi Min Mat Fac Distress Signals 8 | . 1 . . . 4 3 Communications Jammed . | . . . . . . . Distress Signals . | . . . . . . . Times Spotted 241 | . 39 . . . 71 131 Peak Tracking Total 15 | . 3 . . . 8 15 Tactical Retreats 5 | . 2 . . . 3 . Traps | -11 -10 -10 -10 -9 -8 -7 ------- Run | Yrd Mat Min Exi Min Mat Fac Traps Triggered 3 | . 1 . . . 1 1 Indirectly . | . . . . . . . Trap Hack Attempts . | . . . . . . . Triggered . | . . . . . . . Disarmed 3 | . 3 . . . . . Reprogrammed . | . . . . . . . Reused 4 | . . . . . . 4 Traps Reconfigurated 15 | . . . . . . 15 Traps Extracted . | . . . . . . . Installed . | . . . . . . . Triggered 7 | . . . . . . 7 Machines | -11 -10 -10 -10 -9 -8 -7 ---------- Run | Yrd Mat Min Exi Min Mat Fac Machines Disabled 61 | . 9 . . . 8 44 Max in Single Turn 9 | . 2 . . . 3 9 Garrison Access 2 | . . . . . 1 1 Machines Repaired . | . . . . . . . Machines Dismantled . | . . . . . . . Machines Sabotaged 1 | . 1 . . . . . Overloaded Fab Kills . | . . . . . . . Hacking | -11 -10 -10 -10 -9 -8 -7 --------- Run | Yrd Mat Min Exi Min Mat Fac Machines Accessed 26 | . 10 . 1 . 5 10 Terminals 15 | . 7 . . . 3 5 Fabricators 1 | . . . . . . 1 Repair Stations 3 | . 1 . . . . 2 Recycling Units 3 | . 2 . . . . 1 Scanalyzers 1 | . . . . . 1 . Garrison Access 2 | . . . . . 1 1 Total Hacks 85 | . 39 . 1 . 14 31 Successful 46 | . 21 . 1 . 10 14 Failed 39 | . 18 . . . 4 17 Catastrophic 9 | . 4 . . . 2 3 Database Lockouts . | . . . . . . . Manual 44 | . 19 . 1 . 7 17 Terminals 54 | . 30 . . . 9 15 Fabricators 4 | . . . . . . 4 Repair Stations 10 | . 3 . . . . 7 Recycling Units 9 | . 6 . . . . 3 Scanalyzers 4 | . . . . . 4 . Garrison Access 3 | . . . . . 1 2 Terminal Hacks 22 | . 12 . 1 . 5 4 Robot Analysis 1 | . . . . . 1 . Prototype ID Bank 4 | . 3 . . . 1 . Branch Access Points 1 | . 1 . . . . . Alert Level 5 | . 1 . . . 1 3 Locate Traps 5 | . 3 . . . 2 . Disarm Traps 1 | . 1 . . . . . Dispatch Records 1 | . 1 . . . . . Assault Status 1 | . . . . . . 1 Registered Prototypes 1 | . 1 . . . . . Zone Layout 1 | . 1 . . . . . Derelict Proto ID Bank 1 | . . . 1 . . . Fabricator Hacks 2 | . . . . . . 2 Load Schematic 1 | . . . . . . 1 Build 1 | . . . . . . 1 Repair Station Hacks 3 | . 1 . . . . 2 Scan Component 2 | . 1 . . . . 1 Repair 1 | . . . . . . 1 Recycling Unit Hacks 4 | . 1 . . . . 3 Process 1 | . . . . . . 1 Report Inventory 1 | . . . . . . 1 Retrieve Matter 1 | . . . . . . 1 Retrieve Components 1 | . 1 . . . . . Scanalyzer 3 | . . . . . 3 . Insert Component 2 | . . . . . 2 . Analyze 1 | . . . . . 1 . Garrison Access Hacks . | . . . . . . . Unauthorized Hacks 12 | . 7 . . . 2 3 Terminals 7 | . 5 . . . 1 1 Botnet 2 | . 1 . . . 1 . Detonate 1 | . 1 . . . . . Sabotage 2 | . 1 . . . . 1 Search 2 | . 2 . . . . . Fabricators 1 | . . . . . . 1 Fabnet 1 | . . . . . . 1 Repair Stations . | . . . . . . . Recycling Units 2 | . 2 . . . . . Tunnel 2 | . 2 . . . . . Scanalyzers . | . . . . . . . Garrison Access 2 | . . . . . 1 1 Jam 2 | . . . . . 1 1 Data Cores Recovered 2 | . . . . . . 2 Used 1 | . . . . . . 1 Hacking Detections 20 | . 7 . . . 4 9 Full Trace Events 16 | . 5 . . . 4 7 Feedback Events 1 | . . . . . . 1 Corruption 1 | . . . . . . 1 Feedback Blocked . | . . . . . . . Robot Schematics Acquired . | . . . . . . . Robots Built . | . . . . . . . Authchips . | . . . . . . . Time . | . . . . . . . Total Robot Build Rating . | . . . . . . . Part Schematics Acquired 1 | . . . . . 1 . Parts Built 2 | . . . . . . 2 Authchips . | . . . . . . . Time 73 | . . . . . . 73 Total Part Build Rating 6 | . . . . . . 6 Parts Repaired 1 | . . . . . . 1 Time 19 | . . . . . . 19 Parts Recycled . | . . . . . . . Recycled Matter 26 | . . . . . . 26 Retrieved Matter 26 | . . . . . . 26 Retrieved Components 9 | . 9 . . . . . Parts Scanalyzed 1 | . . . . . 1 . Part Schematics Acquired 1 | . . . . . 1 . Parts Damaged . | . . . . . . . Bothacking | -11 -10 -10 -10 -9 -8 -7 ------------ Run | Yrd Mat Min Exi Min Mat Fac Used RIF Installer . | . . . . . . . Robots Hacked . | . . . . . . . Non-combat . | . . . . . . . Combat . | . . . . . . . Robot Hacks Applied . | . . . . . . . Relay Couplers Released 7 | . . . . . 3 4 Machine Destruction 3 | . . . . . 3 . Programmers 4 | . . . . . . 4 Fabnet Peak Effective % . | . . . . . . . Robots Rewired 1 | . . . . . . 1 Allies Hacked . | . . . . . . . Hacks Repelled . | . . . . . . . Allies | -11 -10 -10 -10 -9 -8 -7 -------- Run | Yrd Mat Min Exi Min Mat Fac Total Allies 4 | . . . . 3 . 1 Largest Group 3 | . . . . 3 3 1 Highest-Rated Group 40 | . . . . 40 40 16 Highest-Rated Ally 16 | . . . . 16 16 16 Total Orders . | . . . . . . . Ally Attacks 24 | . . . . . 20 4 Total Damage 285 | . . . . . 233 52 Kills 5 | . . . . . 4 1 Allies Corrupted . | . . . . . . . Allies Melted . | . . . . . . . Intel | -11 -10 -10 -10 -9 -8 -7 ------- Run | Yrd Mat Min Exi Min Mat Fac Robot Analysis Total 1 | . . . . . 1 . Derelict Logs Recovered . | . . . . . . . Drone Launches . | . . . . . . . Drone Recoveries . | . . . . . . . Exploration | -11 -10 -10 -10 -9 -8 -7 ------------- Run | Yrd Mat Min Exi Min Mat Fac Turns Passed 9389 | . 3309 53 289 37 2798 2903 Spaces Moved 4787 | 1 2145 28 237 19 1099 1258 Core 41 | . . . . . 39 2 Treads 2097 | . 159 . . . 1000 938 Legs 2649 | 1 1986 28 237 19 60 318 Wheels . | . . . . . . . Hover . | . . . . . . . Flight . | . . . . . . . Fastest Speed 50 | 120 120 190 120 190 170 50 Average Speed 153 | 120 125 190 120 190 208 156 Slowest Speed 400 | 120 190 190 120 190 400 330 Overloaded Moves . | . . . . . . . Propulsion Burnouts . | . . . . . . . Robots Hopped . | . . . . . . . Cave-ins Triggered . | . . . . . . . Exploration Rate (%) 39 | 2 99 11 60 12 61 29 Regions Visited 6 Branch Regions 3 Pre-discovered Areas 2 | . 2 . . . . . Known Exits Taken 2 | . 1 . . . 1 . Unknown Exits Taken 4 | 1 . 1 1 1 . . Scrap Searched . | . . . . . . . Spaces Dug 4 | . . . . . 1 3 Terrain Destroyed 1470 | . 802 . . . 207 461 Melee 1 | . . . . . . 1 Projectile 99 | . . . . . 45 54 AOE 1370 | . 802 . . . 162 406 Terrain Rammed . | . . . . . . . Walls Destroyed . | . . . . . . . Machines Disabled . | . . . . . . . Actions | -11 -10 -10 -10 -9 -8 -7 --------- Run | Yrd Mat Min Exi Min Mat Fac Total 5943 | . 2435 28 246 20 1389 1825 Wait 356 | . 9 . . . 79 268 Move 4781 | . 2144 27 236 18 1098 1258 Hop . | . . . . . . . Pick Up 52 | . 19 . 4 . 20 9 Fast Attach 64 | . 7 . . . 23 34 Attach 27 | . 5 1 . 2 8 11 Detach 16 | . 3 . 1 . 5 7 Swap 47 | . 12 . . . 14 21 Drop 82 | . 29 . 5 . 28 20 Fire 452 | . 190 . . . 108 154 Melee 11 | . . . . . 1 10 Ram 2 | . . . . . 2 . Kick 14 | . 14 . . . . . Crush 16 | . 3 . . . 3 10 Escape Stasis . | . . . . . . . Rewire 23 | . . . . . . 23 Trap . | . . . . . . . Miscellaneous . | . . . . . . . Route ------- -11/Scrapyard -10/Materials (discovered 6 exits: [*Mat x3] / *Min x2 / [*Sub]) -10/Mines -10/Exiles -9/Mines -8/Materials -7/Factory (discovered 2 exits: [*Fac] / [*Sto]) History --------- Turn | Location | Event 1 | -11/Scrapyard | Discovered new exit (range 0) 1 | -11/Scrapyard | Entered Materials 301 | -10/Materials | Build established: Mutant 370 | -10/Materials | Discovered new exit (range 15) 395 | -10/Materials | Identified exit to Mines 637 | -10/Materials | Core integrity fell below 50% 984 | -10/Materials | Build established: Scavenger-Mutant 1176 | -10/Materials | Discovered new exit (range 15) 1515 | -10/Materials | Discovered new exit (range 10) 1658 | -10/Materials | Build established: Mutant 1686 | -10/Materials | Discovered new exit (range 16) 2883 | -10/Materials | Core integrity fell below 20% 3310 | -10/Materials | Entered Mines 3355 | -10/Mines | Deemed a non-threat by the Exiles lab entrance 3355 | -10/Mines | Discovered new exit (range 5) 3363 | -10/Mines | Entered Exiles 3399 | -10/Exiles | Met 8R-AWN 3438 | -10/Exiles | Met EX-HEX 3479 | -10/Exiles | Met EX-BIN 3495 | -10/Exiles | Aligned with FarCom system 3497 | -10/Exiles | Given EX-Vault access code 3525 | -10/Exiles | Opened EX-Vault 3534 | -10/Exiles | Found Trap Reconfigurator 3560 | -10/Exiles | Warned to stay clear of 0b10 Research branches 3599 | -10/Exiles | Met EX-DEC 3642 | -10/Exiles | Discovered new exit (range 10) 3652 | -10/Exiles | Left Exiles lab with Trap Reconfigurator 3652 | -10/Exiles | Entered Mines 3656 | -9/Mines | Assisted by bots powering up and referring to "LRC-V3" 3668 | -9/Mines | Discovered new exit (range 11) 3689 | -9/Mines | Entered Materials 3689 | -8/Materials | Accompanied by 3 allies 3689 | -8/Materials | Evolved 4 slots: Utility x3, Weapon x1 4270 | -8/Materials | Destroyed 9 combat bots 4379 | -8/Materials | Core integrity fell below 50% 4421 | -8/Materials | System corruption reached 10% 4430 | -8/Materials | Lost 6 parts (1p3u2w) 4437 | -8/Materials | System corruption reached 30% 4678 | -8/Materials | Build established: Scavenger-Bomber 5038 | -8/Materials | Discovered new exit (range 3) 5289 | -8/Materials | First assault squad dispatched 5589 | -8/Materials | Core integrity fell below 20% 5649 | -8/Materials | Sterilization system engaged 5649 | -8/Materials | Non-combat units ordered to evacuate 5749 | -8/Materials | Combat units ordered to evacuate 5759 | -8/Materials | Identified exit to Factory 5837 | -8/Materials | Build established: Scavenger-Skirmisher 5949 | -8/Materials | Ambient heat levels rising (+10) 6099 | -8/Materials | Ambient heat levels rising (+10) 6249 | -8/Materials | Ambient heat levels rising (+10) 6399 | -8/Materials | Ambient heat levels rising (+10) 6487 | -8/Materials | Entered Factory 6487 | -7/Factory | Evolved 2 slots: Propulsion x2 7287 | -7/Factory | First assault squad dispatched 7403 | -7/Factory | Garrison activated, responded to threat 7438 | -7/Factory | Lost 3 parts (2n1u) 7909 | -7/Factory | System corruption reached 10% 7994 | -7/Factory | Repaired Hvy. Assault Cannon 8303 | -7/Factory | Lost 7 parts (3n1u3w) 8413 | -7/Factory | Discovered new exit (range 12) 8533 | -7/Factory | Build established: Scavenger-Mutant 8562 | -7/Factory | Core integrity fell below 50% 8578 | -7/Factory | Lost 3 parts (1p2n) 8604 | -7/Factory | Destroyed 8 combat bots 8698 | -7/Factory | Found Prototype Launcher 8698 | -7/Factory | Identified Rocket Array 8886 | -7/Factory | Fabricated Arm. Treads (x2) 8997 | -7/Factory | Build established: Skirmisher 9039 | -7/Factory | High security lockdown imminent 9090 | -7/Factory | Lost 3 parts (3u) 9119 | -7/Factory | High security lockdown engaged 9282 | -7/Factory | Core integrity fell below 20% 9312 | -7/Factory | Destroyed 14 combat bots 9383 | -7/Factory | Discovered new exit (range 10) 9387 | -7/Factory | Released all parts (12) 9390 | -7/Factory | Destroyed by Y-54 Guardian with Gatling Laser Last Messages --------------- 09381_ Prc. Assault Rifle destroyed. 09383_ G-47 Trooper destroyed. 09383_ M-28 Smith destroyed. 09383_ H-55 Commando destroyed. 09383_ G-47 Trooper destroyed. 09383_ EXIT=FOUND 09384_ The unstable cave ceiling collapses. 09387_ Penetrated by Slug. 09387_ Released Imp. Heat Sink. 09387_ Released Lgt. Treads. 09387_ Released Prc. Assault Rifle. 09387_ Released Rnf. Deuterium Engine. 09387_ Released Trap Scanner. 09387_ Released Graphene Brace. 09387_ Released Arm. Treads. 09387_ Released Targeting Computer. 09387_ Released Rocket Array. 09387_ Acquired 3 matter. 09388_ The unstable cave ceiling collapses. 09389_ ALERT: Heavy assault forces dispatched. Map ----- +----------------------------------------------------+ | ?????????????????????????????# #??????# """ | | ?????????????????????????????# #??????# """ | | ?????????????????????????????# * #??????# """ | | ?????????????????????????????# / ######## | | ???????????????????????""" # =! # +^ | | ???????????????????????""" / + """ # [[ | | ???????????????????????""" # """ ######## | | ?????????????????????? # """ ### #= # | | ?????????????????????" """ #% # * [ | | ?????????????????????"?"" # ]!= | | ??????????????????????? # % #" # *! | | ?????????????????????? %%= " # ! | | ??????????????????? ?? # % " " *!= | | ???????????????????? #T ! # | | ???????????????????? # " # | | ??????????????####### # /% #" # | | ?????????????? =* " # | | ???????????????[ #### # # | | ????????????????? = # #####??##### | | ?????????????????? < # #?????????? | | ??????????????????? !Y # #??????????? | | ???????????????????? Y # [# ############ | | ????????????????????? Y # [ % [%" | | ??????????????????????#Y ]# #!# # # ##### ###### | | ??????????????????????#=!= =p%[ # #????? | | ??????????????????????#*[@%""" """" """" + +????? | | ??????????????????????#[! """" """" """" ####????? | | ??????????????????????##!!"""" """" """" #???????? | | ???????????????????????##["""" """" """" #???????? | | ????????????????????????#="""" """" """"?????????? | | ????????????????????????#!"""" """? ""???????????? | | ????????????????????????#h"""" ""?? ""???????????? | | ????????????????????????# ??? ????????????? | | ????????????????????????########???##????????????? | | ?????????????????????????????????????????????????? | | ?????????????????????????????????????????????????? | | ?????????????????????????????????????????????????? | | ?????????????????????????????????????????????????? | | ?????????????????????????????????????????????????? | | ?????????????????????????????????????????????????? | | ?????????????????????????????????????????????????? | | ?????????????????????????????????????????????????? | | ?????????????????????????????????????????????????? | | ?????????????????????????????????????????????????? | | ?????????????????????????????????????????????????? | | ?????????????????????????????????????????????????? | | ?????????????????????????????????????????????????? | | ?????????????????????????????????????????????????? | | ?????????????????????????????????????????????????? | | ?????????????????????????????????????????????????? | +----------------------------------------------------+ Best States ------------- Heat Dissipation 62 Energy Generation 18 Energy Capacity 310 Matter Stores 350 Matter Capacity 350 Sight Range 16 Terrain Scan Density 10 Armor Coverage 600 Resistance: TH 10 Core Shielding 20 Weapon Shielding 66 Weapon Cycling 15 Evasion (%) 55 Targeting Accuracy 5 Recoil Reduction 4 Kinecelleration 30 Item Schematics ----------------- Arm. Treads | -8/Materials | Scanalyzed Robot Schematics ------------------ None Fabricated ------------ Arm. Treads | x2 | -7/Factory Alien Tech Used ----------------- None Achievements -------------- None Challenges ------------ None Game ------ Seed DerelictArmoredFlamer Manual? 0 Play Time 00:46:34 Cumulative 604.0 hours Start 2024.01.19 @ 23:54:13 End 2024.01.20 @ 00:41:28 Sessions 1 Manual Loads 0 Difficulty Rogue Special Mode None Game No. 545 Rogue 272 Adventurer 123 Explorer 150 Win Type - Total 25 Types 19/0/4/1/0/0/0/1/0 Lore% 79 Gallery% 90 Achievement% 75 Wizard Run 0 Options --------- ASCII 0 Keyboard 1 Movement Numpad Keybinds 0 Fullscreen 2 Font 18/X11Bold Map View 76x50 Zoom Use 0% Tactical HUD 1 Map Filters NONE Filters NONE Steam 1 RUN: 5ff8e59a-a282-41f8-bb2d-ecfcb481bf0a